[Event "*** Titled Tuesday 3|2 Blitz (Late)"]
[Site "Chess.com"]
[Date "2016.11.01"]
[Round "1"]
[White "kereswasbest"]
[Black "theprosecution1"]
[Result "0-1"]
[WhiteElo "2126"]
[BlackElo "2501"]
[TimeControl "180+2"]
[EndTime "17:02:23 PDT"]
[Termination "theprosecution1 won by resignation"]

1. d4 {[%clk 0:03:02]} 1... Nf6 {[%clk 0:02:52.6]} 2. c4 {[%clk 0:03:03.4]} 2...
g6 {[%clk 0:02:52.4]} 3. Nc3 {[%clk 0:03:04.3]} 3... d5 {[%clk 0:02:53.7]} 4.
Nf3 {[%clk 0:03:03.5]} 4... Bg7 {[%clk 0:02:53]} 5. h4 {[%clk 0:03:05.1]} 5...
dxc4 {[%clk 0:02:52]} 6. e4 {[%clk 0:03:01.8]} 6... c5 {[%clk 0:02:52.9]} 7. d5
{[%clk 0:03:02.5]} 7... b5 {[%clk 0:02:43.4]} 8. Nxb5 {[%clk 0:03:01.8]} 8...
Qa5+ {[%clk 0:02:42.7]} 9. Nc3 {[%clk 0:02:56.2]} 9... Nxe4 {[%clk 0:02:42.1]}
10. Qa4+ {[%clk 0:02:52.5]} 10... Qxa4 {[%clk 0:02:39.5]} 11. Nxa4 {[%clk
0:02:54.1]} 11... Bd7 {[%clk 0:02:29.9]} 0-1

[Event "*** Titled Tuesday 3|2 Blitz (Late)"]
[Site "Chess.com"]
[Date "2016.11.01"]
[Round "1"]
[White "pastouche06"]
[Black "psv98"]
[Result "0-1"]
[WhiteElo "2285"]
[BlackElo "2622"]
[TimeControl "180+2"]
[EndTime "17:05:02 PDT"]
[Termination "psv98 won by resignation"]

1. d4 {[%clk 0:03:00.7]} 1... Nf6 {[%clk 0:03:00.5]} 2. c4 {[%clk 0:03:02]} 2...
e6 {[%clk 0:03:02]} 3. Nc3 {[%clk 0:03:03.4]} 3... Bb4 {[%clk 0:03:03.2]} 4. Qc2
{[%clk 0:03:04.8]} 4... d6 {[%clk 0:03:04.4]} 5. Bg5 {[%clk 0:03:03.5]} 5... h6
{[%clk 0:03:04.3]} 6. Bh4 {[%clk 0:03:03.6]} 6... Nbd7 {[%clk 0:03:02.6]} 7. e3
{[%clk 0:03:03.8]} 7... b6 {[%clk 0:02:59.5]} 8. Ne2 {[%clk 0:03:02.9]} 8... Bb7
{[%clk 0:03:00.4]} 9. a3 {[%clk 0:03:02.8]} 9... Bxc3+ {[%clk 0:03:01.6]} 10.
Nxc3 {[%clk 0:03:04.7]} 10... g5 {[%clk 0:02:57.2]} 11. Bg3 {[%clk 0:03:04.8]}
11... Nh5 {[%clk 0:02:58.5]} 12. d5 {[%clk 0:02:56.4]} 12... Qe7 {[%clk
0:02:45.4]} 13. O-O-O {[%clk 0:02:53.4]} 13... O-O-O {[%clk 0:02:41.1]} 14. Be2
{[%clk 0:02:52.6]} 14... Nxg3 {[%clk 0:02:41.1]} 15. hxg3 {[%clk 0:02:54.5]}
15... Kb8 {[%clk 0:02:40.5]} 16. g4 {[%clk 0:02:41.7]} 16... Rdf8 {[%clk
0:02:35.7]} 17. Rh2 {[%clk 0:02:27.3]} 17... Nc5 {[%clk 0:02:09.5]} 18. b4
{[%clk 0:02:15]} 18... Nd7 {[%clk 0:02:06.5]} 19. Bf3 {[%clk 0:02:10.4]} 19...
Ne5 {[%clk 0:02:06.9]} 20. Be2 {[%clk 0:02:06.8]} 20... f5 {[%clk 0:01:56.6]}
21. dxe6 {[%clk 0:01:41.5]} 21... fxg4 {[%clk 0:01:54.4]} 22. Nd5 {[%clk
0:01:22.8]} 22... Qxe6 {[%clk 0:01:54.6]} 23. e4 {[%clk 0:01:22.2]} 23... Rxf2
{[%clk 0:01:53.6]} 0-1

[Event "*** Titled Tuesday 3|2 Blitz (Late)"]
[Site "Chess.com"]
[Date "2016.11.01"]
[Round "1"]
[White "Shivagami"]
[Black "NTBT_DHS"]
[Result "0-1"]
[WhiteElo "2086"]
[BlackElo "2497"]
[TimeControl "180+2"]
[EndTime "17:05:06 PDT"]
[Termination "NTBT_DHS won by resignation"]

1. d4 {[%clk 0:02:55.6]} 1... Nf6 {[%clk 0:03:00.2]} 2. Bf4 {[%clk 0:02:55.4]}
2... g6 {[%clk 0:03:01.2]} 3. e3 {[%clk 0:02:55.2]} 3... Bg7 {[%clk 0:03:02.9]}
4. Nf3 {[%clk 0:02:53.7]} 4... O-O {[%clk 0:03:03.6]} 5. Be2 {[%clk 0:02:47.1]}
5... c5 {[%clk 0:03:01.4]} 6. c3 {[%clk 0:02:44]} 6... d6 {[%clk 0:02:59.7]} 7.
O-O {[%clk 0:02:43.7]} 7... Qb6 {[%clk 0:02:58.5]} 8. Qb3 {[%clk 0:02:35.9]}
8... Be6 {[%clk 0:02:58.1]} 9. c4 {[%clk 0:02:01.7]} 9... Nfd7 {[%clk
0:02:30.4]} 10. Nc3 {[%clk 0:01:30.6]} 10... Bg4 {[%clk 0:01:45.8]} 11. h3
{[%clk 0:01:10.3]} 11... Bxf3 {[%clk 0:01:42.3]} 12. Bxf3 {[%clk 0:01:11.1]}
12... Nc6 {[%clk 0:01:41.1]} 13. d5 {[%clk 0:01:05.8]} 13... Na5 {[%clk
0:01:34]} 14. Qxb6 {[%clk 0:00:53.6]} 14... Nxb6 {[%clk 0:01:33.8]} 15. Be2
{[%clk 0:00:55.2]} 15... Naxc4 {[%clk 0:01:33.1]} 16. Rab1 {[%clk 0:00:47.9]}
16... Nd2 {[%clk 0:01:32.4]} 0-1

[Event "*** Titled Tuesday 3|2 Blitz (Late)"]
[Site "Chess.com"]
[Date "2016.11.01"]
[Round "1"]
[White "jcgs1030"]
[Black "joppie2"]
[Result "0-1"]
[WhiteElo "2211"]
[BlackElo "2533"]
[TimeControl "180+2"]
[EndTime "17:05:25 PDT"]
[Termination "joppie2 won by resignation"]

1. e4 {[%clk 0:03:01.7]} 1... c6 {[%clk 0:02:59.4]} 2. Nf3 {[%clk 0:02:57.4]}
2... d5 {[%clk 0:03:01.3]} 3. Nc3 {[%clk 0:02:58.5]} 3... Bg4 {[%clk 0:03:01.1]}
4. d4 {[%clk 0:02:57.8]} 4... e6 {[%clk 0:02:55.3]} 5. h3 {[%clk 0:02:54.8]}
5... Bxf3 {[%clk 0:02:55.9]} 6. Qxf3 {[%clk 0:02:55]} 6... dxe4 {[%clk
0:02:57.8]} 7. Qxe4 {[%clk 0:02:55.6]} 7... Nf6 {[%clk 0:02:58.9]} 8. Qd3 {[%clk
0:02:55]} 8... Nbd7 {[%clk 0:03:00]} 9. Bg5 {[%clk 0:02:54.1]} 9... Be7 {[%clk
0:03:00.8]} 10. O-O-O {[%clk 0:02:53.9]} 10... Nd5 {[%clk 0:03:01.3]} 11. Bd2
{[%clk 0:02:52.9]} 11... O-O {[%clk 0:03:00.8]} 12. g4 {[%clk 0:02:48.8]} 12...
N7f6 {[%clk 0:03:00.2]} 13. Ne2 {[%clk 0:02:40.7]} 13... Qb6 {[%clk 0:02:51.1]}
14. g5 {[%clk 0:02:18.2]} 14... Nd7 {[%clk 0:02:52.1]} 15. h4 {[%clk 0:02:11.6]}
15... c5 {[%clk 0:02:52.9]} 16. h5 {[%clk 0:02:06.6]} 16... cxd4 {[%clk
0:02:49.1]} 17. g6 {[%clk 0:02:07.1]} 17... Nc5 {[%clk 0:02:32.5]} 18. Qg3
{[%clk 0:01:14.1]} 18... Ne4 {[%clk 0:02:27.6]} 19. Qg2 {[%clk 0:01:02.5]} 19...
Nxd2 {[%clk 0:02:28.6]} 20. Rxd2 {[%clk 0:01:02.2]} 20... Bf6 {[%clk 0:02:23.6]}
21. h6 {[%clk 0:00:51.4]} 21... hxg6 {[%clk 0:02:21.7]} 22. hxg7 {[%clk
0:00:49.2]} 22... Kxg7 {[%clk 0:02:21.7]} 23. Ng3 {[%clk 0:00:47.1]} 23... Rh8
{[%clk 0:02:16.1]} 24. Nh5+ {[%clk 0:00:46.6]} 24... Rxh5 {[%clk 0:02:17.3]} 25.
Rxh5 {[%clk 0:00:46.5]} 25... Nf4 {[%clk 0:02:19]} 26. Rh7+ {[%clk 0:00:34]}
26... Kxh7 {[%clk 0:02:17.2]} 27. Qh2+ {[%clk 0:00:35.9]} 27... Nh5 {[%clk
0:02:18.5]} 28. Be2 {[%clk 0:00:37.3]} 28... Bg5 {[%clk 0:02:19.6]} 0-1

[Event "*** Titled Tuesday 3|2 Blitz (Late)"]
[Site "Chess.com"]
[Date "2016.11.01"]
[Round "1"]
[White "pKiLz5Rn9b"]
[Black "Kanthecarowin"]
[Result "1-0"]
[WhiteElo "2499"]
[BlackElo "2137"]
[TimeControl "180+2"]
[EndTime "17:05:30 PDT"]
[Termination "pKiLz5Rn9b won by resignation"]

1. e4 {[%clk 0:02:56.4]} 1... c6 {[%clk 0:03:00.7]} 2. d4 {[%clk 0:02:55.7]}
2... d5 {[%clk 0:03:02.6]} 3. Nc3 {[%clk 0:02:56.8]} 3... dxe4 {[%clk
0:03:03.1]} 4. Nxe4 {[%clk 0:02:58.1]} 4... Bf5 {[%clk 0:03:02.2]} 5. Ng3 {[%clk
0:02:59.1]} 5... Bg6 {[%clk 0:03:03]} 6. Nf3 {[%clk 0:02:58.1]} 6... Nd7 {[%clk
0:03:01.8]} 7. h4 {[%clk 0:02:58.5]} 7... h6 {[%clk 0:03:02.5]} 8. h5 {[%clk
0:02:59.3]} 8... Bh7 {[%clk 0:03:03.7]} 9. Bd3 {[%clk 0:03:00.9]} 9... Bxd3
{[%clk 0:03:05.3]} 10. Qxd3 {[%clk 0:03:02.8]} 10... Qc7 {[%clk 0:03:06.4]} 11.
Bd2 {[%clk 0:03:03.5]} 11... e6 {[%clk 0:03:07.7]} 12. O-O-O {[%clk 0:03:04.5]}
12... Ngf6 {[%clk 0:03:08.9]} 13. Kb1 {[%clk 0:03:01.2]} 13... O-O-O {[%clk
0:03:09.7]} 14. Ne4 {[%clk 0:02:55.5]} 14... Kb8 {[%clk 0:03:10.7]} 15. Nxf6
{[%clk 0:02:49.7]} 15... Nxf6 {[%clk 0:03:11.2]} 16. Qe2 {[%clk 0:02:51.3]}
16... Ka8 {[%clk 0:03:11.8]} 17. Bc1 {[%clk 0:02:41.6]} 17... Bd6 {[%clk
0:03:12.1]} 18. Ne5 {[%clk 0:02:41.3]} 18... Bxe5 {[%clk 0:03:11.9]} 19. dxe5
{[%clk 0:02:41.7]} 19... Nd5 {[%clk 0:03:10.7]} 20. c4 {[%clk 0:02:39.3]} 20...
Nb6 {[%clk 0:03:05.3]} 21. b3 {[%clk 0:02:38.2]} 21... Rxd1 {[%clk 0:02:58.5]}
22. Rxd1 {[%clk 0:02:38.5]} 22... Rd8 {[%clk 0:02:59.4]} 23. f4 {[%clk 0:02:37]}
23... Qe7 {[%clk 0:02:57.4]} 24. g4 {[%clk 0:02:35.5]} 24... a6 {[%clk
0:02:27.1]} 25. Be3 {[%clk 0:02:33.3]} 25... Nc8 {[%clk 0:02:28.2]} 26. Rxd8
{[%clk 0:02:23.7]} 26... Qxd8 {[%clk 0:02:30.1]} 27. Qd2 {[%clk 0:02:25]} 27...
Qh4 {[%clk 0:02:21.4]} 28. Qe2 {[%clk 0:01:41.9]} 28... Qh1+ {[%clk 0:02:17.4]}
29. Kb2 {[%clk 0:01:41]} 29... Qe4 {[%clk 0:02:17.8]} 30. Qf2 {[%clk 0:01:35]}
30... b5 {[%clk 0:02:07.6]} 31. cxb5 {[%clk 0:01:27.8]} 31... axb5 {[%clk
0:02:07.9]} 32. Bc5 {[%clk 0:01:26.8]} 32... Kb7 {[%clk 0:02:03.3]} 33. Qd2
{[%clk 0:01:18.6]} 33... Qd5 {[%clk 0:02:01.9]} 34. Qxd5 {[%clk 0:01:07.5]} 1-0

[Event "*** Titled Tuesday 3|2 Blitz (Late)"]
[Site "Chess.com"]
[Date "2016.11.01"]
[Round "1"]
[White "Alliswell998"]
[Black "Maitreia"]
[Result "0-1"]
[WhiteElo "2167"]
[BlackElo "2506"]
[TimeControl "180+2"]
[EndTime "17:06:07 PDT"]
[Termination "Maitreia won by resignation"]

1. e4 {[%clk 0:02:44.4]} 1... c5 {[%clk 0:03:00.6]} 2. Nf3 {[%clk 0:02:44.7]}
2... g6 {[%clk 0:03:01.6]} 3. d4 {[%clk 0:02:45]} 3... cxd4 {[%clk 0:03:03.5]}
4. Nxd4 {[%clk 0:02:46.7]} 4... Bg7 {[%clk 0:03:03.9]} 5. Nc3 {[%clk 0:02:47.7]}
5... Nc6 {[%clk 0:03:05]} 6. Be3 {[%clk 0:02:47.6]} 6... Nf6 {[%clk 0:03:05.9]}
7. Bc4 {[%clk 0:02:44.9]} 7... O-O {[%clk 0:03:06.6]} 8. f3 {[%clk 0:02:42.1]}
8... Qb6 {[%clk 0:03:06]} 9. Bb3 {[%clk 0:02:37.3]} 9... Nxe4 {[%clk 0:03:06.6]}
10. Nd5 {[%clk 0:02:33.4]} 10... Qa5+ {[%clk 0:03:04.1]} 11. c3 {[%clk
0:02:33.6]} 11... Nc5 {[%clk 0:02:56.9]} 12. Bc2 {[%clk 0:02:26.7]} 12... Ne6
{[%clk 0:02:30.9]} 13. Nb3 {[%clk 0:02:15.1]} 13... Qd8 {[%clk 0:02:29.9]} 14.
O-O {[%clk 0:02:05.1]} 14... d6 {[%clk 0:02:30.9]} 15. Qd2 {[%clk 0:02:03]}
15... Nc7 {[%clk 0:02:31.9]} 16. Rfe1 {[%clk 0:01:51.1]} 16... Nxd5 {[%clk
0:02:31.6]} 17. Qxd5 {[%clk 0:01:53]} 17... Be6 {[%clk 0:02:32.4]} 18. Qd2
{[%clk 0:01:49.5]} 18... Ne5 {[%clk 0:02:31.8]} 19. Qc1 {[%clk 0:01:45.9]} 19...
a5 {[%clk 0:02:15.6]} 20. Nd4 {[%clk 0:01:45.4]} 20... Bd7 {[%clk 0:02:16.6]}
21. Bh6 {[%clk 0:01:43.9]} 21... Qb6 {[%clk 0:02:16.5]} 22. Kh1 {[%clk
0:01:43.3]} 22... Rfe8 {[%clk 0:02:12.3]} 23. Rb1 {[%clk 0:01:40.5]} 23... Rac8
{[%clk 0:02:10.8]} 24. Bxg7 {[%clk 0:01:33.1]} 24... Kxg7 {[%clk 0:02:12.7]} 25.
Qg5 {[%clk 0:01:33.8]} 25... f6 {[%clk 0:02:07.8]} 26. Qg3 {[%clk 0:01:29.8]}
26... Nf7 {[%clk 0:01:58.9]} 27. h4 {[%clk 0:01:26.9]} 27... e5 {[%clk
0:01:58.2]} 28. Nf5+ {[%clk 0:01:08.9]} 28... Bxf5 {[%clk 0:01:59]} 29. Bxf5
{[%clk 0:01:09.8]} 29... Rc4 {[%clk 0:01:58.3]} 30. h5 {[%clk 0:01:09.5]} 30...
Ng5 {[%clk 0:01:54.7]} 31. hxg6 {[%clk 0:00:49.3]} 31... hxg6 {[%clk 0:01:56.6]}
32. Bh3 {[%clk 0:00:45.2]} 32... Rh8 {[%clk 0:01:55.5]} 33. Rg1 {[%clk
0:00:45.4]} 33... Rch4 {[%clk 0:01:55.9]} 34. Rbf1 {[%clk 0:00:41.5]} 34... Nxh3
{[%clk 0:01:52.4]} 0-1

[Event "*** Titled Tuesday 3|2 Blitz (Late)"]
[Site "Chess.com"]
[Date "2016.11.01"]
[Round "1"]
[White "BCNUM8"]
[Black "nihalsarin"]
[Result "0-1"]
[WhiteElo "2151"]
[BlackElo "2505"]
[TimeControl "180+2"]
[EndTime "17:06:31 PDT"]
[Termination "nihalsarin won by checkmate"]

1. d4 {[%clk 0:03:00.2]} 1... Nf6 {[%clk 0:03:00]} 2. Bg5 {[%clk 0:03:00]} 2...
d5 {[%clk 0:02:58.8]} 3. Bxf6 {[%clk 0:03:00.5]} 3... gxf6 {[%clk 0:03:00.1]} 4.
c4 {[%clk 0:03:01]} 4... dxc4 {[%clk 0:02:59.5]} 5. e3 {[%clk 0:03:01.9]} 5...
c5 {[%clk 0:02:59.2]} 6. Bxc4 {[%clk 0:03:01.9]} 6... cxd4 {[%clk 0:02:59.3]} 7.
exd4 {[%clk 0:02:57.4]} 7... Bg7 {[%clk 0:03:00.4]} 8. Ne2 {[%clk 0:02:50.4]}
8... Nc6 {[%clk 0:02:59.2]} 9. Nbc3 {[%clk 0:02:49.4]} 9... f5 {[%clk
0:03:00.1]} 10. O-O {[%clk 0:02:48.5]} 10... Nxd4 {[%clk 0:02:58.6]} 11. Nxd4
{[%clk 0:02:45.5]} 11... Qxd4 {[%clk 0:02:58.9]} 12. Qb3 {[%clk 0:02:46.7]}
12... O-O {[%clk 0:02:57.4]} 13. Rad1 {[%clk 0:02:48.2]} 13... Qb6 {[%clk
0:02:57.9]} 14. Nd5 {[%clk 0:02:43]} 14... Qc5 {[%clk 0:02:50.9]} 15. Rfe1
{[%clk 0:02:29.9]} 15... e6 {[%clk 0:02:48.8]} 16. Nf4 {[%clk 0:02:31.5]} 16...
Kh8 {[%clk 0:02:28.6]} 17. Nh5 {[%clk 0:02:26.8]} 17... Bd4 {[%clk 0:02:22.9]}
18. Re2 {[%clk 0:02:09.7]} 18... b6 {[%clk 0:01:32.9]} 19. Red2 {[%clk
0:02:09.4]} 19... Be5 {[%clk 0:01:24.3]} 20. Qf3 {[%clk 0:01:39.1]} 20... Rb8
{[%clk 0:01:13.3]} 21. Rd3 {[%clk 0:01:41]} 21... Bb7 {[%clk 0:00:59.6]} 22. Qh3
{[%clk 0:00:40.9]} 22... Qxc4 {[%clk 0:00:56.7]} 23. Rd7 {[%clk 0:00:39.2]}
23... Qg4 {[%clk 0:00:53.7]} 24. Qe3 {[%clk 0:00:38.2]} 24... Qxg2# {[%clk
0:00:53.1]} 0-1

[Event "*** Titled Tuesday 3|2 Blitz (Late)"]
[Site "Chess.com"]
[Date "2016.11.01"]
[Round "1"]
[White "Aygehovit1992"]
[Black "Evgeny_Levin"]
[Result "0-1"]
[WhiteElo "2428"]
[BlackElo "2706"]
[TimeControl "180+2"]
[EndTime "17:06:32 PDT"]
[Termination "Evgeny_Levin won by resignation"]

1. e4 {[%clk 0:02:56.3]} 1... c5 {[%clk 0:02:59.6]} 2. Nf3 {[%clk 0:02:56.9]}
2... d6 {[%clk 0:03:00.1]} 3. d4 {[%clk 0:02:55.9]} 3... cxd4 {[%clk 0:03:02]}
4. Nxd4 {[%clk 0:02:57.5]} 4... Nf6 {[%clk 0:03:03]} 5. Nc3 {[%clk 0:02:59]}
5... a6 {[%clk 0:03:04.3]} 6. h3 {[%clk 0:03:00]} 6... e6 {[%clk 0:02:57.2]} 7.
g4 {[%clk 0:03:01]} 7... Be7 {[%clk 0:02:52]} 8. g5 {[%clk 0:02:56.5]} 8... Nfd7
{[%clk 0:02:52]} 9. h4 {[%clk 0:02:57.9]} 9... Nc6 {[%clk 0:02:52.1]} 10. Be3
{[%clk 0:02:58]} 10... O-O {[%clk 0:02:49.5]} 11. Nxc6 {[%clk 0:02:52.5]} 11...
bxc6 {[%clk 0:02:49.9]} 12. Qd2 {[%clk 0:02:54.4]} 12... d5 {[%clk 0:02:45.7]}
13. h5 {[%clk 0:02:50.7]} 13... Rb8 {[%clk 0:02:19.7]} 14. O-O-O {[%clk
0:02:39.1]} 14... Qa5 {[%clk 0:02:06.3]} 15. Qe1 {[%clk 0:02:20.6]} 15... Qb4
{[%clk 0:02:00.5]} 16. b3 {[%clk 0:02:05.5]} 16... Rd8 {[%clk 0:01:56.8]} 17.
Kb1 {[%clk 0:01:59.5]} 17... Nc5 {[%clk 0:01:48.4]} 18. exd5 {[%clk 0:01:36.9]}
18... exd5 {[%clk 0:01:45.9]} 19. g6 {[%clk 0:01:19.6]} 19... Bf6 {[%clk
0:01:38.4]} 20. gxf7+ {[%clk 0:01:16.2]} 20... Kxf7 {[%clk 0:01:35.2]} 21. Nxd5
{[%clk 0:01:05]} 21... Rxd5 {[%clk 0:01:14.4]} 22. Bg2 {[%clk 0:01:04.8]} 22...
Rxd1+ {[%clk 0:01:09.4]} 23. Qxd1 {[%clk 0:01:02.3]} 23... Qc3 {[%clk
0:01:11.3]} 24. Kc1 {[%clk 0:00:52.6]} 24... Bf5 {[%clk 0:01:09.9]} 25. Bxc5
{[%clk 0:00:32.6]} 25... Qb2+ {[%clk 0:01:02.9]} 26. Kd2 {[%clk 0:00:33.6]}
26... Rd8+ {[%clk 0:01:04.4]} 0-1

[Event "*** Titled Tuesday 3|2 Blitz (Late)"]
[Site "Chess.com"]
[Date "2016.11.01"]
[Round "1"]
[White "Gau_truc_lon"]
[Black "Dlugy"]
[Result "0-1"]
[WhiteElo "2247"]
[BlackElo "2591"]
[TimeControl "180+2"]
[EndTime "17:06:38 PDT"]
[Termination "Dlugy won by resignation"]

1. e4 {[%clk 0:03:01.8]} 1... d5 {[%clk 0:03:01]} 2. exd5 {[%clk 0:03:02.4]}
2... Qxd5 {[%clk 0:03:01.9]} 3. Nc3 {[%clk 0:03:03.9]} 3... Qd6 {[%clk
0:03:02.8]} 4. d4 {[%clk 0:03:05]} 4... c6 {[%clk 0:03:04.2]} 5. Nf3 {[%clk
0:03:06.1]} 5... Bg4 {[%clk 0:03:05.3]} 6. h3 {[%clk 0:02:46.1]} 6... Bxf3
{[%clk 0:03:05.8]} 7. Qxf3 {[%clk 0:02:48]} 7... Qxd4 {[%clk 0:03:07.2]} 8. Be3
{[%clk 0:02:49.2]} 8... Qd8 {[%clk 0:03:08.1]} 9. Bc4 {[%clk 0:02:46.3]} 9...
Nf6 {[%clk 0:03:07.7]} 10. O-O {[%clk 0:02:45.4]} 10... Nbd7 {[%clk 0:03:06.8]}
11. Bf4 {[%clk 0:02:25.8]} 11... e6 {[%clk 0:03:07.1]} 12. Rfe1 {[%clk
0:02:26.7]} 12... Be7 {[%clk 0:03:07.6]} 13. Rad1 {[%clk 0:02:22.6]} 13... O-O
{[%clk 0:03:06]} 14. g4 {[%clk 0:02:20.8]} 14... Nd5 {[%clk 0:02:58.2]} 15. Ne4
{[%clk 0:02:09.2]} 15... Qb6 {[%clk 0:02:51.9]} 16. Bg5 {[%clk 0:01:55]} 16...
Ne5 {[%clk 0:02:48.5]} 17. Qe2 {[%clk 0:01:45.4]} 17... Nxc4 {[%clk 0:02:37.5]}
18. Bxe7 {[%clk 0:01:46.3]} 18... Nxe7 {[%clk 0:02:33.9]} 19. Qxc4 {[%clk
0:01:47.1]} 19... Nd5 {[%clk 0:02:33.3]} 20. b3 {[%clk 0:01:39.8]} 20... Rad8
{[%clk 0:02:33.2]} 21. Ng3 {[%clk 0:01:24.9]} 21... Qb4 {[%clk 0:02:29.6]} 22.
Qf1 {[%clk 0:01:09.8]} 22... Nc3 {[%clk 0:02:22.5]} 23. Ra1 {[%clk 0:01:09.1]}
23... Rd2 {[%clk 0:02:19.8]} 24. Rec1 {[%clk 0:01:01.3]} 24... Rfd8 {[%clk
0:02:17.5]} 25. Qe1 {[%clk 0:00:51.7]} 25... Qd4 {[%clk 0:02:17]} 26. Qe3 {[%clk
0:00:43.9]} 26... Qxe3 {[%clk 0:02:13.5]} 27. fxe3 {[%clk 0:00:45.8]} 27... g6
{[%clk 0:02:04.8]} 28. a4 {[%clk 0:00:40.4]} 28... a5 {[%clk 0:02:06]} 29. Rf1
{[%clk 0:00:33]} 29... Rxc2 {[%clk 0:02:04.9]} 30. Rac1 {[%clk 0:00:34.2]} 30...
Ne2+ {[%clk 0:02:02.7]} 31. Nxe2 {[%clk 0:00:34.6]} 31... Rxe2 {[%clk
0:02:04.6]} 32. Rfe1 {[%clk 0:00:30.6]} 32... Rxe1+ {[%clk 0:02:04.2]} 33. Rxe1
{[%clk 0:00:31.3]} 33... Rd3 {[%clk 0:02:05.9]} 34. Rb1 {[%clk 0:00:24]} 34...
Rxe3 {[%clk 0:02:01.6]} 35. b4 {[%clk 0:00:25.5]} 35... axb4 {[%clk 0:02:01]}
36. Rxb4 {[%clk 0:00:27.4]} 36... Rxh3 {[%clk 0:02:02.3]} 37. Rxb7 {[%clk
0:00:28.6]} 37... Rg3+ {[%clk 0:02:03.5]} 38. Kf2 {[%clk 0:00:29]} 38... Rxg4
{[%clk 0:02:05.2]} 39. a5 {[%clk 0:00:30.5]} 39... Ra4 {[%clk 0:02:06.7]} 40.
Ra7 {[%clk 0:00:30.8]} 40... h5 {[%clk 0:02:07.8]} 41. a6 {[%clk 0:00:30.6]}
41... Kg7 {[%clk 0:02:08.8]} 42. Ra8 {[%clk 0:00:32.1]} 42... h4 {[%clk
0:02:10.1]} 43. a7 {[%clk 0:00:33.7]} 43... Ra2+ {[%clk 0:02:08.1]} 44. Kf3
{[%clk 0:00:34.1]} 44... h3 {[%clk 0:02:09.4]} 0-1

[Event "*** Titled Tuesday 3|2 Blitz (Late)"]
[Site "Chess.com"]
[Date "2016.11.01"]
[Round "1"]
[White "superjem123"]
[Black "SwiftyMcBishop"]
[Result "1-0"]
[WhiteElo "2489"]
[BlackElo "2079"]
[TimeControl "180+2"]
[EndTime "17:07:00 PDT"]
[Termination "superjem123 won by resignation"]

1. c4 {[%clk 0:02:57]} 1... e6 {[%clk 0:03:00.6]} 2. Nc3 {[%clk 0:02:55.9]} 2...
d5 {[%clk 0:03:01.3]} 3. d4 {[%clk 0:02:54.8]} 3... Nf6 {[%clk 0:02:59.1]} 4.
cxd5 {[%clk 0:02:54.2]} 4... exd5 {[%clk 0:02:59.5]} 5. Bg5 {[%clk 0:02:55.7]}
5... c6 {[%clk 0:02:59.5]} 6. e3 {[%clk 0:02:56.3]} 6... Be7 {[%clk 0:03:00.4]}
7. Bd3 {[%clk 0:02:56.3]} 7... Bg4 {[%clk 0:02:56.8]} 8. Qc2 {[%clk 0:02:50.7]}
8... h6 {[%clk 0:02:54.3]} 9. Bh4 {[%clk 0:02:49.4]} 9... Nbd7 {[%clk 0:02:50]}
10. Nf3 {[%clk 0:02:49.7]} 10... Qb6 {[%clk 0:02:27.1]} 11. O-O {[%clk 0:02:42]}
11... O-O {[%clk 0:02:24.1]} 12. Ne5 {[%clk 0:02:39.5]} 12... Qd8 {[%clk
0:02:17.5]} 13. h3 {[%clk 0:02:35.8]} 13... Be6 {[%clk 0:02:16.5]} 14. f4 {[%clk
0:02:35.5]} 14... Nxe5 {[%clk 0:02:02.3]} 15. dxe5 {[%clk 0:02:37.4]} 15... Ne8
{[%clk 0:02:02.2]} 16. Bg3 {[%clk 0:02:25.4]} 16... d4 {[%clk 0:02:00.3]} 17.
exd4 {[%clk 0:02:24.5]} 17... Qxd4+ {[%clk 0:02:01.2]} 18. Kh1 {[%clk
0:02:23.8]} 18... Bc4 {[%clk 0:01:52.6]} 19. Rad1 {[%clk 0:02:18.4]} 19... Bxd3
{[%clk 0:01:51.4]} 20. Rxd3 {[%clk 0:02:20.3]} 20... Qc4 {[%clk 0:01:42.9]} 21.
f5 {[%clk 0:02:12.4]} 21... Rd8 {[%clk 0:01:35.7]} 22. Rdf3 {[%clk 0:01:55.4]}
22... Bb4 {[%clk 0:01:23.8]} 23. Rf4 {[%clk 0:01:52.7]} 23... Rd4 {[%clk
0:01:19.3]} 24. Rxd4 {[%clk 0:01:52.8]} 24... Qxf1+ {[%clk 0:01:18.1]} 25. Kh2
{[%clk 0:01:53.5]} 25... Bc5 {[%clk 0:01:18]} 26. Rd1 {[%clk 0:01:49.5]} 26...
Qc4 {[%clk 0:01:03.2]} 27. b3 {[%clk 0:01:44.3]} 27... Qa6 {[%clk 0:00:55.2]}
28. Ne4 {[%clk 0:01:44.5]} 28... Bb6 {[%clk 0:00:55]} 29. Nd6 {[%clk 0:01:41.5]}
29... Nxd6 {[%clk 0:00:53.8]} 30. exd6 {[%clk 0:01:43.4]} 30... Rd8 {[%clk
0:00:46.2]} 31. f6 {[%clk 0:01:39.9]} 31... g6 {[%clk 0:00:45.7]} 32. d7 {[%clk
0:01:33.1]} 32... Qb5 {[%clk 0:00:42.2]} 33. Qe4 {[%clk 0:01:30.9]} 33... Qf5
{[%clk 0:00:21.8]} 34. Qe8+ {[%clk 0:01:28]} 34... Rxe8 {[%clk 0:00:17.9]} 35.
dxe8=Q+ {[%clk 0:01:28.8]} 35... Kh7 {[%clk 0:00:19.4]} 36. Qxf7+ {[%clk
0:01:30]} 1-0